bitfinex/quotes_SOLUSD_20250806
["timestamp","ask_amount","ask_price","bid_price","bid_amount"]
[1754440545574,0.03,163.59,163.58,14.49154452]
[1754440545783,0.03,163.59,163.58,15.15154452]
[1754440547729,0.03,163.59,163.58,15.29370609]
[1754440548181,0.03,163.61,163.59,15.24837714]
[1754440548384,0.03,163.66,163.61,15.24837714]
[1754440548690,0.03,163.66,163.65,14.48892964]
[1754440548872,0.03,163.66,163.65,57.40892964]
[1754440549076,0.03,163.66,163.65,58.21109121]
[1754440550588,0.03,163.66,163.65,49.83276346]
[1754440550781,0.03,163.66,163.65,58.21109121]
[1754440551975,0.03,163.66,163.65,57.55109121]
[1754440552687,0.03,163.66,163.65,58.21109121]
[1754440553101,0.03,163.66,163.65,57.55109121]
[1754440554384,0.03,163.66,163.65,58.21109121]
[1754440554999,0.03,163.66,163.65,73.31730678]
[1754440555803,0.03,163.66,163.65,72.65730678]
[1754440556609,0.03,163.66,163.65,73.31730678]
[1754440556791,0.03,163.66,163.65,73.92836696]
[1754440558017,0.03,163.66,163.65,73.31730678]
[1754440558231,0.03,163.66,163.65,72.65730678]
[1754440558514,0.03,163.66,163.65,73.31730678]
[1754440560285,0.03,163.68,163.66,15.24837714]
[1754440560625,0.03,163.69,163.67,67.1376904]
[1754440560920,0.03,163.72,163.69,0.42648471]
[1754440561094,0.03,163.72,163.71,23.62670489]
[1754440561287,0.03,163.72,163.71,24.28670489]
[1754440561619,0.03,163.74,163.73,41.24837714]
[1754440561785,1e-08,163.76,163.75,0.28432314]
[1754440561983,0.2,163.81,163.77,0.14216157]
[1754440562187,0.2,163.81,163.79,23.62670489]
[1754440562388,0.2,163.81,163.79,24.28670489]
[1754440562890,0.2,163.81,163.79,30.39208372]
[1754440563105,0.2,163.81,163.79,15.24837714]
[1754440563306,0.2,163.81,163.79,29.73208372]
[1754440563608,0.2,163.81,163.79,30.44208372]
[1754440564013,0.2,163.81,163.8,0.14216157]
[1754440564199,0.2,163.81,163.8,75.57553325]
[1754440564396,0.2,163.81,163.8,76.28553325]
[1754440564700,0.2,163.81,163.8,82.39053935]
[1754440564896,0.2,163.81,163.8,81.78003874]
[1754440565098,0.2,163.81,163.8,73.40171099]
[1754440565683,0.2,163.81,163.8,72.69171099]
[1754440566712,0.88,163.81,163.8,13.41899756]
[1754440566916,0.88,163.81,163.8,56.37899756]
[1754440567115,0.88,163.81,163.8,42.96]
[1754440567699,0.88,163.81,163.8,13.41899756]
[1754440567895,0.2,163.81,163.8,56.39899756]
[1754440568316,0.88,163.81,163.8,56.39899756]
[1754440568900,0.88,163.81,163.8,42.98]
[1754440570797,0.88,163.81,163.8,56.39899756]
[1754440571311,0.2,163.81,163.8,56.39899756]
[1754440573028,0.88,163.81,163.8,56.39899756]
[1754440573603,0.2,163.81,163.8,56.39899756]
[1754440576796,0.2,163.81,163.8,62.64616523]
[1754440577000,0.2,163.81,163.8,63.35616523]
[1754440577205,0.2,163.81,163.8,56.54115913]
[1754440577596,0.2,163.81,163.8,62.64616523]
[1754440578727,0.2,163.81,163.8,63.35616523]
[1754440579112,0.2,163.81,163.8,62.64616523]
[1754440579515,0.2,163.81,163.8,63.35616523]
[1754440579713,0.2,163.81,163.8,78.4623808]
[1754440579912,0.2,163.81,163.8,79.07288141]
[1754440580114,0.2,163.81,163.8,78.4623808]
[1754440581204,0.2,163.81,163.8,78.4423808]
[1754440581405,0.2,163.81,163.8,43.10216157]
[1754440581699,0.2,163.81,163.8,78.30021923]
[1754440581903,0.2,163.81,163.8,78.4423808]
[1754440583934,0.2,163.81,163.8,77.7323808]
[1754440584138,0.2,163.81,163.8,19.66616523]
[1754440584324,0.2,163.81,163.8,62.60616523]
[1754440584927,0.2,163.81,163.8,42.92]
[1754440584928,0.88,163.81,163.8,42.92]
[1754440585529,0.88,163.81,163.8,56.33899756]
[1754440585749,0.2,163.81,163.8,56.33899756]
[1754440587716,0.2,163.81,163.8,77.6923808]
[1754440588312,0.2,163.81,163.8,78.4023808]
[1754440588714,0.2,163.81,163.8,72.65810902]
[1754440591118,0.2,163.81,163.8,73.36810902]
[1754440592231,0.2,163.81,163.8,72.65810902]
[1754440592420,0.2,163.81,163.8,64.27338324]
[1754440592738,0.2,163.81,163.8,72.65810902]
[1754440592940,0.2,163.81,163.8,73.36810902]
[1754440593328,0.2,163.81,163.8,81.7528348]
[1754440593539,0.03,163.83,163.81,15.24837714]
[1754440593755,0.03,163.83,163.82,67.14352899]
[1754440594050,0.03,163.83,163.82,67.85352899]
[1754440594553,0.03,163.83,163.82,67.87352899]
[1754440595057,0.03,163.83,163.82,73.97778976]
[1754440596924,0.03,163.84,163.82,73.97778976]
[1754440597146,0.03,163.84,163.83,8.38472578]
[1754440597348,0.03,163.84,163.83,9.09472578]
[1754440597529,0.03,163.84,163.83,24.34310292]
[1754440598157,0.03,163.84,163.83,23.63310292]
[1754440598457,0.2,163.89,163.84,41.24837714]
[1754440598654,0.2,163.89,163.88,23.63310292]
[1754440598820,0.2,163.89,163.88,66.53310292]
[1754440599166,0.2,163.89,163.88,72.63512879]
[1754440601235,0.2,163.89,163.88,73.34512879]
[1754440601947,0.03,163.91,163.9,41.10621557]
[1754440602145,0.03,163.91,163.9,100.8978287]
[1754440602652,0.72,163.91,163.9,51.40688735]
[1754440603019,0.72,163.91,163.9,51.26472578]
[1754440603333,0.72,163.91,163.9,57.36600704]
[1754440604043,0.72,163.91,163.9,42.88]
[1754440604552,0.72,163.91,163.9,51.26472578]
[1754440605850,0.72,163.91,163.9,42.88]
[1754440606630,6.82090903,163.91,163.9,42.88]
[1754440606838,0.72,163.91,163.9,42.88]
[1754440608655,6.82090903,163.91,163.87,8.38472578]
[1754440608833,9.07472578,163.9,163.84,8.38472578]
[1754440609032,0.69,163.89,163.85,42.88]
[1754440609244,15.17674832,163.89,163.85,42.88]
[1754440609452,0.69,163.88,163.85,42.88]
[1754440610029,8.38472578,163.87,163.85,42.88]
[1754440610235,0.69,163.86,163.85,42.88]
[1754440611231,6.79282005,163.86,163.82,8.38472578]
[1754440611425,0.69,163.85,163.83,42.88]
[1754440611621,6.10282005,163.86,163.83,42.88]
[1754440611832,0.69,163.84,163.83,42.88]
[1754440612052,0.69,163.86,163.83,51.26472578]
[1754440612457,0.69,163.85,163.83,51.26472578]
[1754440614656,0.69,163.85,163.83,42.88]
[1754440614853,0.69,163.85,163.83,51.26472578]
[1754440617036,0.69,163.82,163.81,42.86]
[1754440621668,9.07472578,163.84,163.81,42.86]
[1754440621862,0.69,163.83,163.81,42.86]
[1754440622872,0.69,163.82,163.81,42.86]
[1754440624177,15.17898655,163.82,163.8,0.06]
[1754440624344,8.38472578,163.81,163.8,0.06]
[1754440624536,9.09472578,163.81,163.8,42.92]
[1754440625794,9.09472578,163.81,163.8,0.06]
[1754440625952,15.19935919,163.81,163.8,0.06]
[1754440627072,41.19935919,163.81,163.8,0.06]
[1754440627552,45.27330712,163.81,163.8,0.06]
[1754440629153,15.19935919,163.81,163.8,0.06]
[1754440629354,15.19935919,163.81,163.8,1e-08]
[1754440629355,38.83246211,163.81,163.8,1e-08]
[1754440629766,30.44773633,163.81,163.8,1e-08]
[1754440630644,10.88579323,163.81,163.8,1e-08]
[1754440630850,19.27051901,163.81,163.8,1e-08]
[1754440631660,15.19935919,163.81,163.8,1e-08]
[1754440631890,19.27043774,163.81,163.8,1e-08]
[1754440632855,36.88571196,163.81,163.8,1e-08]
[1754440633061,40.48935919,163.81,163.8,1e-08]
[1754440633256,41.19935919,163.81,163.8,1e-08]
[1754440636288,40.48935919,163.81,163.8,1e-08]
[1754440638392,34.38472578,163.81,163.8,1e-08]
[1754440638863,26.0,163.81,163.8,1e-08]
[1754440639753,32.10463341,163.81,163.8,1e-08]
[1754440639960,41.19935919,163.81,163.8,1e-08]
[1754440640686,175.8,163.83,163.8,0.72000001]
[1754440641278,181.90390899,163.83,163.8,0.72000001]
[1754440642090,0.71,163.82,163.8,1e-08]
[1754440642881,9.09472578,163.82,163.8,1e-08]
[1754440643287,8.38472578,163.82,163.8,1e-08]
[1754440643761,175.8,163.83,163.81,0.72]
[1754440644258,175.8,163.83,163.81,8.38472578]
[1754440644259,149.8,163.83,163.81,8.38472578]
[1754440644460,149.8,163.83,163.82,9.10472578]
[1754440644684,26.0,163.85,163.82,9.10472578]
[1754440644878,26.03,163.85,163.83,0.72]
[1754440646380,0.03,163.85,163.83,8.38472578]
[1754440646569,0.03,163.85,163.83,9.10472578]
[1754440647061,0.03,163.85,163.83,0.72]
[1754440647264,0.03,163.85,163.82,8.38472578]
[1754440647463,0.03,163.85,163.8,1e-08]
[1754440647464,8.38472578,163.83,163.8,1e-08]
[1754440647686,8.38472578,163.82,163.8,1e-08]
[1754440648077,9.09472578,163.82,163.8,1e-08]
[1754440648592,0.71,163.81,163.8,1e-08]
[1754440648795,26.03,163.85,163.8,1e-08]
[1754440648992,9.09472578,163.82,163.8,1e-08]
[1754440649169,0.71,163.81,163.8,1e-08]
[1754440649997,8.38472578,163.82,163.8,1e-08]
[1754440650169,15.19861395,163.83,163.8,1e-08]
[1754440650579,0.03,163.81,163.8,1e-08]
[1754440651905,9.12472578,163.81,163.8,1e-08]
[1754440652806,0.03,163.81,163.8,1e-08]
[1754440655897,9.08472578,163.81,163.8,1e-08]
[1754440656274,13.16352031,163.81,163.8,1e-08]
[1754440657069,0.03,163.81,163.8,1e-08]
[1754440657279,0.03,163.81,163.8,0.68000001]
[1754440657696,0.03,163.81,163.8,1e-08]
[1754440659503,0.7,163.81,163.8,1e-08]
[1754440659807,0.03,163.81,163.8,1e-08]
[1754440659995,0.03,163.81,163.8,9.06472579]
[1754440660191,0.03,163.81,163.8,1e-08]
[1754440662090,0.03,163.81,163.8,0.68000001]
[1754440662590,0.03,163.81,163.8,1e-08]
[1754440663190,0.03,163.81,163.8,0.68000001]
[1754440664006,0.03,163.81,163.8,9.06472579]
[1754440664322,0.03,163.81,163.8,15.16973189]
[1754440666521,0.03,163.81,163.8,30.41810903]
[1754440669417,0.03,163.81,163.8,8.38472579]
[1754440669624,0.03,163.81,163.8,14.48973189]
[1754440671295,0.03,163.81,163.8,15.16973189]
[1754440674027,0.03,163.81,163.8,8.38472579]
[1754440674722,0.03,163.81,163.8,15.16973189]
[1754440675234,0.03,163.81,163.8,15.31189346]
[1754440676332,0.03,163.81,163.8,14.48973189]
[1754440677335,0.03,163.81,163.8,15.16973189]
[1754440677708,0.03,163.81,163.8,30.41810903]
[1754440678517,0.03,163.81,163.8,38.80283481]
[1754440678712,0.03,163.81,163.8,30.41810903]
[1754440681446,0.03,163.81,163.8,38.80283481]
[1754440682941,0.03,163.81,163.8,81.70283481]
[1754440683248,0.03,163.81,163.8,73.31810903]
[1754440683843,0.03,163.81,163.8,81.70283481]
[1754440684714,0.03,163.83,163.81,15.24837714]
[1754440684913,0.03,163.83,163.82,51.26472578]
[1754440685119,0.03,163.83,163.82,51.95472578]
[1754440685960,0.03,163.83,163.82,51.26472578]
[1754440686773,0.03,163.83,163.82,57.36898655]
[1754440688122,0.71,163.83,163.81,6.10450504]
[1754440688336,0.71,163.83,163.82,42.88]
[1754440688735,0.71,163.83,163.82,51.26472578]
[1754440689355,0.71,163.83,163.82,57.36898655]
[1754440691650,0.71,163.83,163.82,51.26472578]
[1754440692437,0.71,163.83,163.82,57.36898655]
[1754440692640,0.03,163.83,163.82,57.36898655]
[1754440694648,0.03,163.83,163.82,48.98426077]
[1754440694947,0.71,163.83,163.82,42.88]
[1754440695135,0.71,163.83,163.82,51.26472578]
[1754440696629,0.71,163.83,163.82,57.36898655]
[1754440697059,0.03,163.83,163.82,57.36898655]
[1754440697358,0.03,163.83,163.82,58.05898655]
[1754440698548,0.03,163.83,163.82,57.36898655]
[1754440700862,0.03,163.83,163.82,48.98426077]
[1754440701069,0.03,163.83,163.82,57.36898655]
[1754440701865,0.71,163.83,163.82,42.88]
[1754440705671,6.81388817,163.83,163.82,42.88]
[1754440706370,19.28411481,163.83,163.82,42.88]
[1754440706573,10.89938903,163.83,163.82,42.88]
[1754440706748,19.28411481,163.83,163.82,42.88]
[1754440710570,13.18022664,163.83,163.82,42.88]
[1754440710777,4.79550086,163.83,163.82,42.88]
[1754440711075,10.89938903,163.83,163.82,42.88]
[1754440711449,4.79550086,163.83,163.82,42.88]
[1754440711853,10.89938903,163.83,163.82,42.88]
[1754440712482,4.79550086,163.83,163.82,42.88]
[1754440717687,19.28411481,163.83,163.82,42.88]
[1754440717986,19.28411481,163.83,163.81,0.06]
[1754440718166,13.18022664,163.82,163.81,0.06]
[1754440718581,4.08550086,163.82,163.81,0.06]
[1754440719099,4.79550086,163.82,163.81,0.06]
[1754440719272,13.18022664,163.82,163.81,0.06]
[1754440719472,4.08550086,163.82,163.81,0.06]
[1754440719703,0.03,163.83,163.81,15.26935919]
[1754440719868,0.03,163.83,163.82,51.26472578]
[1754440720070,0.03,163.83,163.82,51.98472578]
[1754440721690,0.03,163.83,163.82,58.08898655]
[1754440725815,0.03,163.83,163.81,6.16450151]
[1754440725975,0.03,163.83,163.81,8.44472578]
[1754440725976,0.74,163.83,163.81,8.44472578]
[1754440726177,0.74,163.83,163.82,42.86]
[1754440726378,0.03,163.83,163.82,42.86]
[1754440726913,0.74,163.83,163.82,42.86]
[1754440727220,0.03,163.83,163.82,51.96472578]
[1754440727574,0.03,163.83,163.82,51.24472578]
[1754440727914,0.03,163.83,163.82,58.06898655]
[1754440730078,0.03,163.83,163.82,57.34898655]
[1754440731078,0.03,163.83,163.82,58.06898655]
[1754440735416,0.03,163.83,163.82,57.34898655]
[1754440735985,0.03,163.83,163.82,58.06898655]
[1754440737310,0.03,163.83,163.82,57.34898655]
[1754440737681,0.03,163.83,163.82,58.06898655]
[1754440739095,0.03,163.83,163.82,73.31736369]
[1754440739298,0.03,163.83,163.82,73.92778976]
[1754440739919,0.03,163.84,163.83,15.24837714]
[1754440740103,0.03,163.91,163.9,8.38472578]
[1754440740398,0.03,163.91,163.9,66.96106947]
[1754440740588,0.03,163.91,163.9,67.68106947]
[1754440740811,0.03,163.91,163.9,67.07094135]
[1754440741605,0.03,163.91,163.9,73.17222261]
[1754440744896,0.03,163.91,163.9,29.73438418]
[1754440745102,0.03,163.91,163.9,72.57438418]
[1754440745917,0.03,163.91,163.9,73.24438418]
[1754440748439,0.03,163.91,163.9,82.23923808]
[1754440751152,0.03,163.91,163.9,73.24438418]
[1754440751838,0.03,163.91,163.9,81.62910996]
[1754440752039,0.03,163.91,163.9,84.07088896]
[1754440753643,0.03,163.93,163.92,0.14216157]
[1754440753844,0.03,163.93,163.92,51.36688735]
[1754440755552,0.03,163.93,163.92,57.46742419]
[1754440755758,0.73,163.93,163.92,57.46742419]
[1754440756050,0.73,163.93,163.92,72.57363976]
[1754440756243,0.03,163.93,163.92,72.57363976]
[1754440756420,0.73,163.93,163.92,72.57363976]
[1754440756623,0.03,163.93,163.92,72.57363976]
[1754440757849,0.73,163.93,163.92,72.57363976]
[1754440758054,0.03,163.93,163.92,72.57363976]
[1754440758949,0.03,163.95,163.94,0.14216157]
[1754440759256,0.03,163.95,163.94,52.03688735]
[1754440759636,0.03,163.95,163.94,58.13667995]
[1754440761028,0.2,163.97,163.96,0.14216157]
[1754440761350,0.2,163.97,163.96,52.01688735]
[1754440762004,0.2,163.97,163.96,57.44593589]
[1754440762553,0.2,163.97,163.96,72.55215146]
[1754440762753,0.9,163.97,163.96,72.55215146]
[1754440763373,0.2,163.97,163.96,72.55215146]
[1754440763767,0.2,163.97,163.96,73.22215146]
[1754440768169,1e-08,163.97,163.96,73.83205631]
[1754440772563,1e-08,163.97,163.96,72.55215146]
[1754440774671,0.67000001,163.97,163.96,72.55215146]
[1754440774907,0.67000001,163.97,163.95,14.48405281]
[1754440775191,0.67000001,163.97,163.96,42.8]
[1754440775888,0.67000001,163.97,163.96,51.18472578]
[1754440776393,0.67000001,163.97,163.96,57.28377432]
[1754440777697,0.67000001,163.97,163.96,51.18472578]
[1754440777872,0.67000001,163.97,163.96,42.8]
[1754440778678,9.05472579,163.97,163.96,42.8]
[1754440779696,6.76867659,163.97,163.96,42.8]
[1754440780001,15.15340237,163.97,163.96,42.8]
[1754440780175,0.67000001,163.97,163.96,42.8]
[1754440781212,9.05472579,163.97,163.96,42.8]
[1754440783014,0.67000001,163.97,163.96,42.8]
[1754440785234,1e-08,163.97,163.96,51.18472578]
[1754440785826,1e-08,163.97,163.96,48.89904854]
[1754440786237,1e-08,163.97,163.96,57.28377432]
[1754440786405,1e-08,163.97,163.96,57.96377432]
[1754440786909,1e-08,163.97,163.96,57.28377432]
[1754440787630,1e-08,163.97,163.96,48.89904854]
[1754440787821,1e-08,163.97,163.96,57.28377432]
[1754440789030,1e-08,163.97,163.96,57.96377432]
[1754440789335,1e-08,163.97,163.96,57.28377432]
[1754440789631,0.67000001,163.97,163.94,2.441481]
[1754440789841,9.05472579,163.97,163.95,42.82]
[1754440790010,0.67,163.96,163.95,42.82]
[1754440793040,1e-08,163.97,163.95,42.82]
[1754440793423,0.67000001,163.97,163.95,42.82]
[1754440793944,1e-08,163.97,163.96,8.38472578]
[1754440794615,1e-08,163.97,163.96,14.48377432]
[1754440795241,1e-08,163.97,163.96,8.38472578]
[1754440795444,1e-08,163.97,163.95,49.59931657]
[1754440795445,0.67000001,163.97,163.95,42.82]
[1754440796536,0.67000001,163.97,163.95,51.20472578]
[1754440797054,0.67000001,163.97,163.95,42.82]
[1754440797344,0.67000001,163.97,163.95,57.30407579]
[1754440797517,1e-08,163.97,163.95,57.30407579]
[1754440797717,1e-08,163.97,163.96,9.06472578]
[1754440798122,0.67000001,163.97,163.95,42.82]
[1754440798321,1e-08,163.97,163.96,42.82]
[1754440799244,0.67000001,163.97,163.96,42.82]
[1754440800732,15.15340237,163.97,163.93,0.06]
[1754440800929,8.38472578,163.94,163.93,0.06]
[1754440801142,26.0,163.92,163.91,0.06]
[1754440801458,34.38472578,163.92,163.91,0.06]
[1754440801617,34.38472578,163.92,163.89,42.88]
[1754440801618,35.05472578,163.92,163.89,42.88]
[1754440801817,8.38472578,163.9,163.89,42.88]
[1754440802043,9.05472578,163.9,163.89,42.88]
[1754440802622,9.05472578,163.9,163.89,0.06]
[1754440802851,15.15600704,163.9,163.89,0.06]
[1754440803346,26.67,163.92,163.89,0.06]
[1754440803535,9.05472578,163.9,163.89,0.06]
[1754440804032,6.1006126,163.92,163.89,0.06]
[1754440804033,9.04472578,163.92,163.89,0.06]
[1754440804356,9.04472578,163.9,163.89,0.06]
[1754440804926,15.14600704,163.9,163.89,0.06]
[1754440805461,41.14519112,163.93,163.89,0.74]
[1754440805848,0.66,163.92,163.89,0.06]
[1754440806423,0.66,163.91,163.89,0.06]
[1754440806858,8.38472578,163.91,163.89,0.06]
[1754440807028,0.66,163.9,163.89,0.06]
[1754440807935,9.04472578,163.9,163.89,0.06]
[1754440809751,15.14600704,163.9,163.89,0.06]
[1754440809926,15.14600704,163.9,163.89,42.9]
[1754440811746,15.14600704,163.9,163.89,0.06]
[1754440812334,6.76083483,163.92,163.89,0.06]
[1754440812656,26.0,163.9,163.89,0.06]
[1754440813922,41.14600704,163.9,163.89,0.06]
[1754440814525,32.76128126,163.9,163.89,0.06]
[1754440814726,34.38472578,163.9,163.89,0.06]
[1754440814954,8.38472578,163.91,163.89,0.06]
[1754440815148,8.38472578,163.91,163.9,42.86]
[1754440815636,0.66,163.93,163.9,42.86]
[1754440815958,8.38472578,163.91,163.9,42.86]
[1754440816656,9.04472578,163.91,163.9,42.86]
[1754440818279,8.38472578,163.91,163.9,42.86]
[1754440820566,8.38472578,163.92,163.9,42.86]
[1754440821535,8.38472578,163.91,163.9,42.86]
[1754440821743,9.04472578,163.91,163.9,42.86]
[1754440822575,14.48563481,163.91,163.9,42.86]
[1754440823172,15.14563481,163.91,163.9,42.86]
[1754440823770,14.51563481,163.91,163.9,42.86]
[1754440823968,8.41472578,163.91,163.9,42.86]
[1754440824854,0.03,163.91,163.9,42.86]
[1754440825180,8.41472578,163.91,163.9,42.86]
[1754440826478,14.51563481,163.91,163.9,42.86]
[1754440826848,15.17563481,163.91,163.9,42.86]
[1754440829449,14.51563481,163.91,163.9,42.86]
[1754440831160,15.17563481,163.91,163.9,42.86]
[1754440831558,15.17563481,163.91,163.9,42.84]
[1754440832151,14.51563481,163.91,163.9,42.84]
[1754440832653,14.51563481,163.91,163.89,0.06]
[1754440832654,45.26021807,163.91,163.89,0.06]
[1754440832880,15.14600704,163.9,163.89,0.06]
[1754440836388,19.23306173,163.9,163.89,0.06]
[1754440836682,19.23306173,163.9,163.87,0.06]
[1754440836683,27.61778751,163.9,163.87,0.06]
[1754440836902,34.38472578,163.88,163.87,0.06]
[1754440837092,44.57380634,163.88,163.87,0.06]
[1754440837294,45.28380634,163.88,163.87,0.06]
[1754440840880,36.89908056,163.88,163.87,0.06]
[1754440841086,45.28380634,163.88,163.87,0.06]
[1754440842203,15.10621557,163.87,163.85,0.06]
[1754440842382,26.0,163.84,163.83,0.06]
[1754440842589,38.47178047,163.84,163.83,0.06]
[1754440842788,39.18178047,163.84,163.83,0.06]
[1754440844109,30.79705469,163.84,163.83,0.06]
[1754440844410,45.28529609,163.84,163.83,0.06]
[1754440849101,60.54408515,163.84,163.81,0.06]
[1754440849403,8.38472578,163.82,163.8,1e-08]
[1754440849577,46.85650625,163.81,163.8,1e-08]
[1754440849783,21.56650625,163.81,163.8,1e-08]
[1754440850601,13.18178047,163.81,163.8,1e-08]
[1754440851193,27.67113966,163.81,163.8,1e-08]
[1754440852105,19.28641388,163.81,163.8,1e-08]
[1754440852899,21.73162588,163.81,163.8,1e-08]
[1754440853708,10.1916881,163.81,163.8,1e-08]
[1754440853907,40.48935919,163.81,163.8,1e-08]
[1754440854105,14.48935919,163.81,163.8,1e-08]
[1754440854303,14.48935919,163.81,163.8,0.68000001]
[1754440855186,8.38472578,163.81,163.8,0.68000001]
[1754440855391,6.10432855,163.82,163.8,0.68000001]
[1754440855392,14.48905433,163.82,163.8,0.68000001]
[1754440855598,2.444615,163.86,163.81,8.38472578]
[1754440855919,6.10281147,163.86,163.82,0.68]
[1754440856101,26.0,163.83,163.82,0.68]
[1754440856501,8.38472578,163.86,163.82,0.68]
[1754440856699,14.48720811,163.87,163.82,9.06472578]
[1754440856905,26.0,163.84,163.83,0.68]
[1754440857307,14.48720811,163.87,163.83,0.68]
[1754440857505,26.0,163.84,163.83,0.68]
[1754440857706,14.48720811,163.87,163.83,0.68]
[1754440857901,8.38472578,163.86,163.83,0.68]
[1754440858097,8.38472578,163.86,163.84,0.68]
[1754440858823,14.48751806,163.86,163.84,0.68]
[1754440859209,6.10279228,163.86,163.8,51.24472579]
[1754440859413,8.38472578,163.85,163.81,0.68]
[1754440859826,6.10279228,163.86,163.81,0.68]
[1754440860022,14.48751806,163.86,163.81,9.06472578]
[1754440860332,14.48751806,163.86,163.82,0.68]
[1754440861228,8.38472578,163.86,163.82,6.78412755]
[1754440861538,32.10245474,163.87,163.83,9.06472578]
[1754440861704,32.10245474,163.87,163.83,8.38472578]
[1754440861903,32.10245474,163.87,163.84,0.68]
[1754440862427,40.48718052,163.87,163.84,0.68]
[1754440863012,41.19718052,163.87,163.82,9.06472578]
[1754440863211,41.19718052,163.87,163.83,0.68]
[1754440863736,8.38472578,163.86,163.83,0.68]
[1754440864118,41.20718052,163.87,163.84,0.68]
[1754440864443,40.48718052,163.87,163.84,0.68]
[1754440865104,32.10245474,163.87,163.84,0.68]
[1754440865317,26.0,163.87,163.85,0.68]
[1754440865937,26.0,163.87,163.83,9.06472578]
[1754440866240,9.10472578,163.86,163.81,9.06472578]
[1754440866540,0.72,163.85,163.81,9.06472578]
[1754440867035,6.8232191,163.85,163.83,0.06]
[1754440867623,9.10472578,163.84,163.83,0.06]
[1754440869239,15.2082414,163.84,163.83,0.06]
[1754440870508,41.2082414,163.84,163.83,0.06]
[1754440870819,19.28789692,163.84,163.83,0.06]
[1754440871919,26.0,163.81,163.8,1e-08]
[1754440872235,34.38472578,163.81,163.8,1e-08]
[1754440872415,35.10472578,163.81,163.8,1e-08]
[1754440872815,39.18501773,163.81,163.8,1e-08]
[1754440873358,45.28965114,163.81,163.8,1e-08]
[1754440873539,41.20935919,163.81,163.8,1e-08]
[1754440873847,68.92348831,163.81,163.8,1e-08]
[1754440874052,15.24837714,163.8,163.79,1e-08]
[1754440874211,36.8188549,163.8,163.79,1e-08]
[1754440874848,26.0,163.78,163.77,0.06]
[1754440875026,30.0810262,163.78,163.77,0.06]
[1754440875227,39.18575198,163.78,163.77,0.06]
[1754440875749,45.29150359,163.78,163.77,0.06]
[1754440878634,44.57150359,163.78,163.77,0.06]
[1754440878827,44.57150359,163.78,163.77,0.74]
[1754440879226,44.57150359,163.78,163.77,0.06]
[1754440879417,26.0,163.78,163.77,0.74]
[1754440880128,32.10575161,163.78,163.77,0.06]
[1754440880526,26.0,163.78,163.77,0.74]
[1754440880729,6.10546148,163.79,163.77,0.74]
[1754440881031,164.28984093,163.8,163.78,0.68]
[1754440881657,149.8,163.8,163.77,0.06]
[1754440881959,149.8,163.8,163.79,0.68]
[1754440882124,149.8,163.8,163.77,0.06]
[1754440882629,155.90506085,163.8,163.78,0.68]
[1754440882838,155.90506085,163.8,163.77,0.06]
[1754440883039,155.90506085,163.8,163.77,0.74]
[1754440883360,164.28978663,163.8,163.77,0.74]
[1754440883556,149.8,163.8,163.78,0.68]
[1754440883753,26.0,163.81,163.78,9.06472578]
[1754440884054,26.0,163.81,163.79,9.06472578]
[1754440884354,14.48835409,163.84,163.8,0.68]
[1754440884530,14.48835409,163.84,163.81,0.68]
[1754440885060,0.03,163.82,163.81,0.68]
[1754440887155,0.03,163.82,163.79,9.06472578]
[1754440887320,0.03,163.82,163.77,49.02598627]
[1754440887526,9.13472578,163.82,163.77,51.98472578]